Cogmind - Beta 15 @@@ ROGUE MODE // 2025.05.29 @ 22:32:21 Player: DZKane Result: Destroyed by S-43 Plague with Heavy Machine Gun Performance ------------- Evolutions (9) 4500 Regions Visited (18) 3600 Robots Destroyed (161) 805 Value Destroyed (7480) 7480 Prototype IDs (9) 180 Alien Tech Used (0) 0 Bonus (4490) 4490 TOTAL SCORE: 21055 Bonus ------- High Alert Combat Kills 350 Follower Combat Kills 1584 Built Enhanced Grunts 300 Met R17 at Cetus 500 Met R17 at Research 2000 Friendly Fire -244 Cogmind --------- Core Integrity 0/1600 Matter 286/300 Energy 98/100 System Corruption 2% Temperature Cool (0) Movement Core (50) Location -1/Access Parts ------- > --- POWER (3) -------- (None) > --- PROPULSION (6) --- (None) > --- UTILITY (13) ----- (None) > --- WEAPON (3) ------- (None) > --- INVENTORY (5) ---- Layered Heavy Armor Plating Drone Bay (2/2) Enhanced Nova Cannon Missile Launcher Peak State ------------ > --- POWER ------------ Antimatter Reactor Particle Reactor Light Quantum Reactor > --- PROPULSION ------- Armored Medium Treads Biometal Medium Treads Improved Heavy Siege Treads Improved Heavy Siege Treads > --- UTILITY ---------- Advanced Cryofiber Web Advanced Heat Sink Huge Storage Unit Advanced Terrain Scanner Advanced Terrain Scan Processor Improved Transmission Jammer Centrium Medium Armor Plating Centrium Medium Armor Plating Improved Thermal Shield Improved Force Field Advanced System Shield > --- WEAPON ----------- Compact HERF Cannon Matter Neutralizer Compact Mass Driver > --- INVENTORY -------- Light Antimatter Reactor Armored Medium Treads Centrium Wheel Advanced Signal Interpreter Improved Particle Charger Improved Particle Charger Layered Medium Armor Plating Layered Heavy Armor Plating Experimental Focal Shield Hacking Suite Hacking Suite Drone Bay HERF Cannon Compact HERF Cannon Helical Railgun Heavy Gauss Cannon Compact Mass Driver Enhanced Hardcell Cannon Gamma Bomb Array Missile Launcher Nanosword [Rating: 173] Favorites ----------- Power Quantum Reactor Engine Heavy Ion Engine Power Core Fission Core Reactor Quantum Reactor Propulsion Centrium Heavy Treads Treads Centrium Heavy Treads Leg Aluminum Leg Wheel Centrium Wheel Utility Medium Storage Unit Device Advanced Heat Sink Storage Medium Storage Unit Processor Machine Analyzer Hackware Advanced System Shield Protection Centrium Medium Armor Plating Weapon Phase Cannon Energy Gun Subdweller Laser Energy Cannon Phase Cannon Ballistic Gun KE Penetrator Ballistic Cannon Compact Mass Driver Launcher Missile Launcher Impact Weapon Great Maul Slashing Weapon Katana Build | -11 -10 -10 -10 -8 -7 -6 -6 -6 -5 -4 -4 -4 -4 -4 -3 -3 -2 -1 ------- Run | Yrd Mat Min Sub Mat Fac Fac Ext Cet Fac Fac Was Fac Upp Upp Res Qua Res Acc Slots Evolved 18 | . . . . 4 2 2 . . 2 2 . . . . 2 . 2 2 Power 2 | . . . . . . 1 . . . . . . . . 1 . . . Propulsion 4 | . . . . 2 . 1 . . 1 . . . . . . . . . Utility 11 | . . . . 2 2 . . . 1 2 . . . . . . 2 2 Weapon 1 | . . . . . . . . . . . . . . . 1 . . . Parts Attached 136 | 1 6 2 4 19 2 13 30 7 2 6 2 . 3 3 7 10 18 1 Power 17 | . 1 . . 1 . 2 4 1 . 1 . . . 1 1 1 4 . Engine 5 | . 1 . . 1 . 1 2 . . . . . . . . . . . Core 4 | . . . . . . 1 2 . . 1 . . . . . . . . Reactor 8 | . . . . . . . . 1 . . . . . 1 1 1 4 . Propulsion 41 | . 2 2 1 7 . 5 9 3 . 1 . . . . . 4 7 . Treads 13 | . 2 . . . . . . 3 . 1 . . . . . 4 3 . Leg 27 | . . 2 1 7 . 5 9 . . . . . . . . . 3 . Wheel 1 | . . . . . . . . . . . . . . . . . 1 . Hover . | . . . . . . . . . . . . . . . . . . . Flight . | . . . . . . . . . . . . . . . . . . . Utility 53 | . 2 . 1 6 2 5 12 3 2 4 1 . 3 1 3 5 2 1 Device 26 | . . . 1 2 . 3 6 1 2 2 1 . 2 1 3 1 1 . Storage 3 | . . . . 1 1 . . . . . . . . . . 1 . . Processor 3 | . . . . 1 . . 1 . . . . . 1 . . . . . Hackware 3 | . . . . . . . . . . 1 . . . . . . 1 1 Protection 18 | . 2 . . 2 1 2 5 2 . 1 . . . . . 3 . . Artifact . | . . . . . . . . . . . . . . . . . . . Weapon 25 | 1 1 . 2 5 . 1 5 . . . 1 . . 1 3 . 5 . Energy Gun 1 | . . . 1 . . . . . . . . . . . . . . . Energy Cannon 8 | . . . . . . 1 3 . . . . . . . 1 . 3 . Ballistic Gun 4 | 1 1 . . . . . . . . . 1 . . 1 . . . . Ballistic Cannon 3 | . . . . . . . . . . . . . . . 2 . 1 . Launcher 3 | . . . 1 . . . 1 . . . . . . . . . 1 . Special Weapon . | . . . . . . . . . . . . . . . . . . . Impact Weapon 2 | . . . . 1 . . 1 . . . . . . . . . . . Slashing Weapon 4 | . . . . 4 . . . . . . . . . . . . . . Piercing Weapon . | . . . . . . . . . . . . . . . . . . . Special Melee Weapon . | . . . . . . . . . . . . . . . . . . . Unidentified Prototypes 7 | . . . . 1 . . . 2 . . . . . . 2 2 . . Corrupted Parts 6 | . . . . . . . . 3 . . . . . . . 1 2 . System Corruption 36 | . . . . . . . . 20 . . . . . . . 2 14 . Parts Lost 44 | . 1 1 4 3 . 4 3 . . 1 . . 1 . . 3 22 1 Power 12 | . 1 . 1 . . 1 1 . . . . . 1 . . 1 6 . Propulsion 10 | . . 1 1 2 . 2 . . . . . . . . . 1 3 . Utility 16 | . . . 1 1 . 1 . . . 1 . . . . . 1 10 1 Weapon 6 | . . . 1 . . . 2 . . . . . . . . . 3 . Highest Loss Streak 10 | . 1 1 2 3 . 4 1 . . 1 . . 1 . . 1 10 1 To Critical Strikes 2 | . . . . . . 1 . . . . . . . . . 1 . . Average Backups 10 | 6 7 8 7 9 9 9 9 8 6 8 9 9 9 9 8 10 17 3 Power . | 1 . . . . 1 . . . . . . . . . . . . . Propulsion 1 | 4 2 . . 1 2 1 2 1 1 . . 1 1 2 3 3 2 . Utility 4 | . 2 3 2 3 3 3 4 5 4 5 5 6 5 4 4 5 7 2 Weapon 3 | 1 2 4 4 3 3 3 2 1 1 2 2 2 2 2 1 2 7 1 Tool/Special . | . . . . . . . . . . . . . . . . . . . Unused Backups 43 | . 8 2 . 9 1 1 4 4 . . . . . . . 2 9 3 Power 1 | . 1 . . . . . . . . . . . . . . . . . Propulsion 10 | . 4 . . 1 . . 4 1 . . . . . . . . . . Utility 18 | . 1 1 . 4 1 . . 2 . . . . . . . 2 5 2 Weapon 14 | . 2 1 . 4 . 1 . 1 . . . . . . . . 4 1 Tool/Special . | . . . . . . . . . . . . . . . . . . . Average Slot Usage (%) 87 | . 93 98 93 90 98 98 99 99 81 83 84 84 79 80 83 84 78 1 Engine 4 | . 10 14 8 8 7 11 6 5 . . . . . . . . . . Core 1 | . . . . . . . 5 6 5 5 5 5 1 . . . . . Reactor 4 | . . . . . . . . . 5 5 5 5 5 7 12 13 10 . Treads 8 | . 12 3 . . . . . . 16 15 15 15 15 15 14 14 13 . Leg 14 | . 14 22 27 32 30 32 33 31 . . . . . . . . 1 . Device 16 | . . . 7 8 7 10 11 20 22 25 26 26 23 23 27 27 20 . Storage 6 | . 14 14 14 9 13 13 6 6 5 5 5 5 5 5 4 4 3 . Processor 5 | . . . . 6 7 6 8 6 5 5 5 5 7 10 4 4 3 . Hackware 1 | . . . . . . . . . . 3 5 5 5 2 . . 3 1 Protection 7 | . 11 14 5 6 15 8 11 6 5 6 5 5 5 5 4 4 5 . Energy Cannon 4 | . . . . . . . 9 13 11 10 5 5 4 3 4 4 6 . Ballistic Gun 4 | . 28 28 19 . . . . . . . 2 5 5 6 5 . . . Ballistic Cannon 1 | . . . . . . . . . . . . . . . 3 9 4 . Impact Weapon 1 | . . . . 1 7 5 2 . . . . . . . . . . . Slashing Weapon 1 | . . . . 15 7 6 1 . . . . . . . . . . . Peak Build Rating 173 | 6 8 8 9 29 32 49 76 101 116 130 127 126 128 128 159 159 173 5 Average Rating 90 | 6 6 7 8 24 31 40 68 84 115 125 125 126 122 123 150 151 146 3 On Entrance 72 | 6 6 8 8 8 28 32 48 76 101 116 127 126 126 120 128 159 156 2 Naked Turns 158 | . . . . . . . . . . . . . . . . . 81 77 Heaviest Build 189 | 13 16 14 14 31 43 55 63 69 70 79 72 69 69 72 112 188 189 . Greatest Support 240 | 20 40 20 20 45 45 72 107 160 240 240 240 240 240 240 240 240 220 3 Greatest Overweight (x) 7 | . 4 1 . 1 . . . . . . . . . . . . 7 . Average Overweight (x) . | . . . . . . . . . . . . . . . . . . . Largest Inventory Capacity 25 | 8 8 8 8 10 10 10 10 10 10 10 10 10 10 10 10 25 25 5 Average Capacity 12 | 8 8 8 8 9 10 10 10 10 10 10 10 10 10 10 10 17 24 5 Most Carried 23 | 6 8 8 8 10 10 10 10 10 10 10 10 10 10 10 10 17 23 5 Average Carried 10 | 6 7 7 7 9 9 9 9 9 7 8 9 10 9 9 9 11 18 4 Final Capacity 25 | 8 8 8 8 10 10 10 10 10 10 10 10 10 10 10 10 25 5 5 Final Carried 17 | 6 8 8 8 10 10 10 10 10 10 10 10 10 10 10 10 17 5 5 Class Distribution -------------------- 37% | Scavenger-Mutant 19% | Scavenger-Tank 15% | Mutant 9% | Commander-Mutant 5% | Tank 5% | Scavenger-Skirmisher 3% | Derelict-Tank Dominant Class ---------------- Mutant | -10/Materials Mutant | -10/Mines Mutant | -10/Subcaves Scavenger-Mutant | -8/Materials Scavenger-Mutant | -7/Factory Scavenger-Mutant | -6/Factory Commander-Mutant | -6/Extension Scavenger-Mutant | -6/Cetus Scavenger-Mutant | -5/Factory Scavenger-Mutant | -4/Factory Scavenger-Mutant | -4/Waste Scavenger-Mutant | -4/Factory Scavenger-Mutant | -4/Upper Caves Scavenger-Skirmisher | -4/Upper Caves Scavenger-Tank | -3/Research Scavenger-Tank | -3/Quarantine Tank | -2/Research Mutant | -1/Access Resources | -11 -10 -10 -10 -8 -7 -6 -6 -6 -5 -4 -4 -4 -4 -4 -3 -3 -2 -1 ----------- Run | Yrd Mat Min Sub Mat Fac Fac Ext Cet Fac Fac Was Fac Upp Upp Res Qua Res Acc Matter Collected 4336 | 210 303 51 100 237 20 110 416 60 46 50 284 . 309 52 186 878 1024 . Remotely . | . . . . . . . . . . . . . . . . . . . Salvage Created 8826 | . 146 102 254 746 34 207 1356 168 261 99 1324 . 299 . 44 914 2872 . Parts 310 | . 13 6 16 34 . 5 49 4 15 1 13 . 10 . . 36 108 . Haulers Intercepted 5 | . . . . 1 . . 2 . . . . . . . . . 2 . Recyclers Shooed 9 | . . 1 . . . . 3 . . . . . . . . 4 1 . Parts Field Recycled . | . . . . . . . . . . . . . . . . . . . Retrieved Matter . | . . . . . . . . . . . . . . . . . . . Parts Self-Destructed 21 | . . . 2 . . . . . . . . . 19 . . . . . Prevented . | . . . . . . . . . . . . . . . . . . . Kills | -11 -10 -10 -10 -8 -7 -6 -6 -6 -5 -4 -4 -4 -4 -4 -3 -3 -2 -1 ------- Run | Yrd Mat Min Sub Mat Fac Fac Ext Cet Fac Fac Was Fac Upp Upp Res Qua Res Acc Combat Hostiles Destroyed 122 | . 5 2 9 18 1 5 15 2 3 . 5 . 5 . 1 13 38 . Melee 22 | . . . . 16 1 1 4 . . . . . . . . . . . Guns 14 | . 5 2 4 . . . . . . . . . 3 . . . . . Cannons 39 | . . . . . . 1 8 1 3 . 2 . . . 1 9 14 . AOE 26 | . . . 5 . . . 2 . . . 3 . 2 . . 3 11 . Classes Destroyed 18 | . 3 . 2 1 . 1 3 . 1 . 1 . . . . 2 4 . Worker 5 | . . . . . . . . . . . . . . . . 1 4 . Builder 6 | . . . . . . . . . . . . . . . . . 6 . Tunneler 1 | . . . . . . . . . . . . . . . . . 1 . Hauler 5 | . . . . 1 . . 2 . . . . . . . . . 2 . Recycler 5 | . . . . . . . 2 . . . . . . . . 3 . . Mechanic 1 | . . . . . . . . . 1 . . . . . . . . . Operator 1 | . . . . . . . . . . . . . . . . . 1 . Watcher 11 | . 1 . . . . 1 2 1 . 1 . . . . . 2 3 . Swarmer 26 | . 3 . 3 6 . 3 . . 1 . . . 1 . . 4 5 . Grunt 43 | . 2 2 1 10 . . 3 . . . . . 4 . . 3 18 . Brawler 2 | . . . . . . . 1 . . . . . . . . . 1 . Sentry 19 | . . . 1 2 1 1 8 . 2 . . . . . 1 . 3 . Hunter 2 | . . . . . . . 2 . . . . . . . . . . . Programmer 17 | . . . . . . 1 1 . . . . . . . . 5 10 . Behemoth 1 | . . . . . . . . . . . . . . . . . 1 . Compactor 5 | . . . . . . . . . . . 5 . . . . . . . Cetus Guard 2 | . . . . . . . . 2 . . . . . . . . . . Enhanced Grunt 3 | . . . . . . . . . . 2 1 . . . . . . . Alpha 7 1 | . . . . . . . . . . . . . . . . 1 . . Subdweller 4 | . . . 4 . . . . . . . . . . . . . . . Guerrilla 1 | . . . . . . . . . 1 . . . . . . . . . Best Kill Streak 11 | . 3 2 3 6 1 3 3 2 3 1 2 . 4 . 1 4 11 . Combat Bots Only 8 | . 3 2 3 5 1 3 3 2 2 . 2 . 4 . 1 4 8 . Max Kills in Single Turn 3 | . 1 1 3 1 1 1 2 1 2 3 2 . 2 . 1 2 3 . Gunslinging . | . . . . . . . . . . . . . . . . . . . Exploded 3 | . . . 3 . . . 2 . . . 1 . 2 . . 2 3 . Melee 1 | . . . . 1 1 1 1 . . . . . . . . . . . Uniques/NPCs Destroyed . | . . . . . . . . . . . . . . . . . . . Combat | -11 -10 -10 -10 -8 -7 -6 -6 -6 -5 -4 -4 -4 -4 -4 -3 -3 -2 -1 -------- Run | Yrd Mat Min Sub Mat Fac Fac Ext Cet Fac Fac Was Fac Upp Upp Res Qua Res Acc Hostile Shots Fired 1477 | . 22 16 37 88 81 66 269 20 15 4 . 4 110 . 12 172 453 108 Missed 415 | . 2 3 14 24 25 15 90 4 6 2 . 1 14 . 3 33 137 42 Hits 1062 | . 20 13 23 64 56 51 179 16 9 2 . 3 96 . 9 139 316 66 Melee 1 | . . . . . . . . . . . . . . . . . 1 . Projectile 1061 | . 20 13 23 64 56 51 179 16 9 2 . 3 96 . 9 139 315 66 AOE 1 | . . . . . . . . . . . . . . . . . . 1 Critical Strikes 63 | . . 1 1 2 . 2 7 5 1 . . . 7 . . 11 24 2 Damage Taken 16880 | . 351 181 501 744 277 527 1824 373 185 347 146 18 1814 . 110 1583 6259 1640 Core 3859 | . 53 17 140 168 13 70 138 . 20 . 28 . 199 . . 134 1261 1618 Absorbed by Shields 2232 | . . . . 54 132 109 . 79 . . . . . . 113 980 765 . Reduced by Siege Mode 844 | . . . . . . . . . . . . . 238 . . 51 555 . Redirected to Shielding 76 | . 15 . . . 61 . . . . . . . . . . . . . Ignored by Resistances 1980 | . . . . . . . 32 . 20 12 12 . 424 . 16 470 994 . Regen/Repaired (Parts) 367 | . . . . . . . . . . 367 . . . . . . . . Core Remaining (%) 70 | 100 . . 16 69 98 . . 75 98 . . . . 80 . 89 13 . Volleys Fired 415 | . 22 10 24 . . 2 71 12 6 1 19 . 30 . 6 74 138 . Largest 3 | . 2 2 2 . . 1 2 2 2 2 2 . 2 . 3 3 3 . Hottest 247 | . 40 40 80 . . 90 170 170 170 170 121 . 118 . 196 196 247 . Shots Fired 638 | . 44 20 41 . . 2 85 24 12 2 36 . 41 . 19 119 193 . Gun 130 | . 44 20 35 . . . . . . . . . 30 . 1 . . . Cannon 464 | . . . . . . 2 83 24 12 2 18 . 9 . 18 116 180 . Launcher 44 | . . . 6 . . . 2 . . . 18 . 2 . . 3 13 . Special . | . . . . . . . . . . . . . . . . . . . Kinetic 286 | . 44 20 26 . . . . . . . . . 30 . 13 87 66 . Thermal 201 | . . . 9 . . 2 83 24 12 2 18 . 9 . . . 42 . Explosive 39 | . . . 6 . . . 2 . . . 18 . 2 . . 3 8 . Electromagnetic 112 | . . . . . . . . . . . . . . . 6 29 77 . Robot Hit Streak 26 | . 11 6 19 . . 4 18 6 4 . 7 . 14 . 17 20 26 . Robot Miss Streak 5 | . 3 2 2 . . . 3 3 2 2 1 . 1 . 1 5 4 . Penetration Max 1 | . . . . . . . . . . . . . . . . 1 1 . Secondary Targets . | . . . . . . . . . . . . . . . . . . . Shots Hit Robots 522 | . 27 13 33 45 13 12 91 15 6 . 27 . 31 . 17 68 124 . Core Hits 294 | . 12 5 17 17 1 2 46 7 6 16 15 . 13 . 4 36 97 . Critical Kills 6 | . . . 1 . 1 . 1 1 . . . . . . . . 2 . Critical Parts Destroyed 4 | . . 1 . 1 . 1 1 . . . . . . . . . . . Critical Strikes 27 | . . 1 2 5 1 1 4 1 . . . . . . 2 3 7 . Meltdown 3 | . . . . . . . . 1 . . . . . . . . 2 . Destroy 3 | . . 1 2 . . . . . . . . . . . . . . . Blast 7 | . . . . . . . . . . . . . . . 2 3 2 . Corrupt 3 | . . . . . . . . . . . . . . . . . 3 . Smash 5 | . . . . 1 1 1 2 . . . . . . . . . . . Sever 6 | . . . . 4 . . 2 . . . . . . . . . . . Melee Attacks 164 | . . . . 82 18 35 29 . . . . . . . . . . . Impact 75 | . . . . 18 13 29 15 . . . . . . . . . . . Slashing 89 | . . . . 64 5 6 14 . . . . . . . . . . . Piercing . | . . . . . . . . . . . . . . . . . . . Sneak Attacks 2 | . . . . 1 . . 1 . . . . . . . . . . . Combat Hostiles . | . . . . . . . . . . . . . . . . . . . Follow-up Attacks 22 | . . . . 12 4 3 3 . . . . . . . . . . . Damage Inflicted 25234 | . 305 149 592 1548 417 463 3409 613 328 1569 2163 . 1006 . 616 3320 8709 27 Guns 1429 | . 305 149 321 . . . . . . . . . 631 . 23 . . . Cannons 13065 | . . . . . . 80 2188 613 320 . 527 . 193 . 572 2777 5795 . Explosions 7286 | . . . 271 . . . 254 . . 1561 1636 . 182 . . 468 2914 . Melee 3299 | . . . . 1548 417 383 951 . . . . . . . . . . . Ramming 155 | . . . . . . . 16 . 8 8 . . . . 21 75 . 27 Kinetic 6092 | . 305 149 164 . . . . . . . . . 631 . 432 1939 2472 . Thermal 6279 | . . . 157 . . 80 2188 613 320 . 527 . 193 . . 101 2100 . Explosive 5407 | . . . 271 . . . 254 . . 1561 1636 . 182 . . 367 1136 . Electromagnetic 4002 | . . . . . . . . . . . . . . . 163 838 3001 . Impact 1523 | . . . . 404 286 354 479 . . . . . . . . . . . Slashing 1776 | . . . . 1144 131 29 472 . . . . . . . . . . . Piercing . | . . . . . . . . . . . . . . . . . . . Highest Corruption 39 | . 1 1 1 . . . . 20 . . 20 20 20 20 1 9 39 2 Average Corruption 10 | . 1 1 1 . . . . 11 . . 11 20 20 20 1 2 17 1 Corruption Purged . | . . . . . . . . . . . . . . . . . . . Corruption Blocked . | . . . . . . . . . . . . . . . . . . . Effects 162 | . 2 2 2 . . . . 1 . . 11 1 44 6 9 16 68 . Message Errors 37 | . 1 . 1 . . . . 1 . . 3 . 11 2 1 3 14 . Matter Fused 39 | . 1 . . . . . . . . . 2 1 10 . 2 4 19 . Heat Flow Errors 19 | . . 1 1 . . . . . . . . . 5 2 1 3 6 . Energy Discharges 12 | . . . . . . . . . . . 1 . 5 1 1 1 3 . Parts Rejected 2 | . . . . . . . . . . . . . 1 . . . 1 . Parts Fused 2 | . . . . . . . . . . . . . . . 1 . 1 . Data Loss (minor) 18 | . . . . . . . . . . . 2 . 3 1 2 3 7 . Data Loss (major) 10 | . . 1 . . . . . . . . 1 . 5 . . 1 2 . Misfires 7 | . . . . . . . . . . . . . 4 . 1 . 2 . Alerts 2 | . . . . . . . . . . . . . . . . . 2 . Misdirections 5 | . . . . . . . . . . . . . . . . . 5 . Weapon Failures 9 | . . . . . . . . . . . 2 . . . . 1 6 . Overload Shots . | . . . . . . . . . . . . . . . . . . . Overflow Damage 858 | . . . . 130 42 106 74 . . 60 . . . . 18 113 315 . Projectiles 412 | . . . . . . . 38 . . . . . . . 18 92 264 . Explosions 132 | . . . . . . . . . . 60 . . . . . 21 51 . Melee 314 | . . . . 130 42 106 36 . . . . . . . . . . . Knockbacks 40 | . . . . 1 . 2 . . . . . . . . 1 16 20 . Impact 3 | . . . . 1 . 2 . . . . . . . . . . . . Kinetic 34 | . . . . . . . . . . . . . . . 1 16 17 . Secondary 3 | . . . . . . . . . . . . . . . . . 3 . Self-Inflicted Damage 948 | . . . 37 . . . . . . 314 111 . 66 . . 113 295 12 Shots 29 | . . . 1 . . . . . . 4 4 . 1 . . 2 17 . Rammed 14 | . . . . . . . . . 1 1 . . . . 2 2 . 8 Targets Rammed 16 | . . . . . . . 1 . 1 1 . . . . 2 3 . 8 Kicked 1 | . . . . . . . 1 . . . . . . . . . . . Crushed 1 | . . . . . . . . . . . . . . . . 1 . . Highest Temperature 334 | . 9 220 102 4 . 84 314 261 198 3 . . 334 105 23 168 267 . Average Temperature 85 | . 6 65 32 4 . 41 86 120 81 2 . . 106 57 23 121 92 . Received Heat Transfer 4226 | . 66 120 120 339 80 20 621 . 54 18 . . 774 . 21 267 1699 27 Effects 4 | . . . . . . . . 1 . . . . . . . . 3 . Energy Bleed 1 | . . . . . . . . 1 . . . . . . . . . . Interference 3 | . . . . . . . . . . . . . . . . . 3 . Siege Activations 13 | . . . . . . . . . . . . . 2 . . 3 8 . Total Turns 292 | . . . . . . . . . . . . . 63 . . 50 179 . Longest Duration 47 | . . . . . . . . . . . . . 47 . . 27 38 . Martial Activations . | . . . . . . . . . . . . . . . . . . . Shielding Activations . | . . . . . . . . . . . . . . . . . . . Robots Disrupted . | . . . . . . . . . . . . . . . . . . . Combat Hostiles . | . . . . . . . . . . . . . . . . . . . Robots Corrupted 19 | . . . . 2 . 4 1 . . . . . . . . 1 11 . Combat Hostiles 18 | . . . . 2 . 3 1 . . . . . . . . 1 11 . Parts Fried 33 | . . . . 4 . 3 1 1 . . . . . . . 5 19 . Impact Corruptions 15 | . . . . 4 1 6 2 . . . . . . . 1 . 1 . Robots Melted 3 | . . . . . . . . 1 . . . . . . . . 2 . Combat Hostiles 3 | . . . . . . . . 1 . . . . . . . . 2 . Parts Melted 13 | . . . 2 . . . 7 2 1 . . . . . . . 1 . Heat Transferred 6674 | . . . 200 . . 100 2986 629 333 . 555 . 222 . . 50 1599 . Parts Sabotaged 4 | . . . . . . . . . . . . . . . . . 4 . Parts Stolen . | . . . . . . . . . . . . . . . . . . . Parts Stripped . | . . . . . . . . . . . . . . . . . . . Power Chain Reactions 6 | . . . . . . . . . . . . . . . . 1 5 . Alert | -11 -10 -10 -10 -8 -7 -6 -6 -6 -5 -4 -4 -4 -4 -4 -3 -3 -2 -1 ------- Run | Yrd Mat Min Sub Mat Fac Fac Ext Cet Fac Fac Was Fac Upp Upp Res Qua Res Acc Maximum Alert Level 3 | . . . . . . . 2 1 2 1 . . . . . . 3 2 Low Security (%) 63 | 100 100 100 . 100 100 100 26 28 82 7 100 100 . . 100 100 28 . Level 1 27 | . . . . . . . 73 71 12 92 . . . . . . 33 . Level 2 4 | . . . . . . . . . 4 . . . . . . . 18 100 Level 3 3 | . . . . . . . . . . . . . . . . . 19 . Level 4 . | . . . . . . . . . . . . . . . . . . . Level 5 . | . . . . . . . . . . . . . . . . . . . High Security . | . . . . . . . . . . . . . . . . . . . Max Security . | . . . . . . . . . . . . . . . . . . . Peak Influence 782 | . 62 40 . 185 73 48 427 304 407 305 149 49 . . 38 154 782 468 Initial 468 | . . . . 20 73 4 7 196 154 193 81 49 . . . . 74 468 Average 164 | . 11 9 . 104 23 9 256 233 179 247 108 47 . . 2 54 345 442 Influence Increases 5731 | . 147 50 110 529 33 165 1411 314 343 189 100 . 245 . 77 477 1496 45 Destroy 0b10 Robot/C 2940 | . 100 40 100 360 20 100 700 160 120 20 . . 180 . 20 260 760 . Destroy 0b10 Robot/NC 210 | . 5 . . 5 . 5 60 10 5 5 . . . . . 30 85 . Destroy Leader 468 | . 22 10 10 72 10 32 76 . 30 12 . . 10 . 10 34 140 . Allied During Kill 874 | . . . . . . . 510 125 155 29 . . 55 . . . . . Successful Hack 112 | . 4 . . 11 . . 21 8 7 5 . . . . 37 . 19 . Disable Machine 150 | . . . . . . . . . . 60 . . . . . 45 45 . Destroy Structure 692 | . 1 . . 6 3 13 44 11 26 58 100 . . . 10 108 312 . Lose Combat Pursuer 285 | . 15 . . 75 . 15 . . . . . . . . . . 135 45 Influence Decreases 5288 | . 147 50 70 406 186 159 1077 388 222 354 261 32 284 . 77 344 847 384 Entered New Map 1166 | . . . . 20 90 6 9 154 122 204 151 22 15 . . . 59 314 Time Decay 3233 | . 147 50 70 356 96 118 578 214 100 140 110 10 219 . 77 320 568 60 Lost Part 369 | . . . . 30 . 35 30 . . 10 . . 10 . . 24 220 10 Lost Ally 520 | . . . . . . . 460 20 . . . . 40 . . . . . Squads Dispatched 24 | . 1 . . 2 . 2 2 . . . . . . . 3 3 8 3 Investigation 5 | . . . . . . . . . . . . . . . 2 1 1 1 Extermination 8 | . . . . . . 1 . . . . . . . . . 2 5 . Reinforcement 11 | . 1 . . 2 . 1 2 . . . . . . . 1 . 2 2 Assault . | . . . . . . . . . . . . . . . . . . . Garrison . | . . . . . . . . . . . . . . . . . . . Intercept . | . . . . . . . . . . . . . . . . . . . Searches Triggered . | . . . . . . . . . . . . . . . . . . . Construction Impeded 1 | . . . . . . . 1 . . . . . . . . . . . Haulers Reinforced 2 | . . . . . . . . . . . . . . . . . 1 1 Active Scanning Responses . | . . . . . . . . . . . . . . . . . . . Cargo Convoy Interrupts 1 | . . . . . . . . . . . . . . . . . 1 . Stealth | -11 -10 -10 -10 -8 -7 -6 -6 -6 -5 -4 -4 -4 -4 -4 -3 -3 -2 -1 --------- Run | Yrd Mat Min Sub Mat Fac Fac Ext Cet Fac Fac Was Fac Upp Upp Res Qua Res Acc Distress Signals 21 | . 1 . . 2 . . 3 2 1 . . . . . 8 1 3 . Communications Jammed 25 | . . . . . . . . . . . . . . . 1 2 22 . Distress Signals 23 | . . . . . . . . . . . . . . . 1 2 20 . Times Spotted 246 | . 14 2 7 30 1 9 41 10 5 2 6 2 10 . 7 18 67 15 Peak Tracking Total 13 | . 3 2 3 7 1 3 6 5 2 1 3 2 7 . 2 4 13 12 Tactical Retreats 13 | . 1 . . 3 . 1 . . . . . . . . . . 6 2 Traps | -11 -10 -10 -10 -8 -7 -6 -6 -6 -5 -4 -4 -4 -4 -4 -3 -3 -2 -1 ------- Run | Yrd Mat Min Sub Mat Fac Fac Ext Cet Fac Fac Was Fac Upp Upp Res Qua Res Acc Traps Triggered 9 | . 3 . 1 . . . 2 . . 1 . . . . . . 2 . Indirectly . | . . . . . . . . . . . . . . . . . . . Trap Hack Attempts . | . . . . . . . . . . . . . . . . . . . Triggered . | . . . . . . . . . . . . . . . . . . . Disarmed . | . . . . . . . . . . . . . . . . . . . Reprogrammed . | . . . . . . . . . . . . . . . . . . . Reused . | . . . . . . . . . . . . . . . . . . . Traps Extracted . | . . . . . . . . . . . . . . . . . . . Installed . | . . . . . . . . . . . . . . . . . . . Triggered . | . . . . . . . . . . . . . . . . . . . Machines | -11 -10 -10 -10 -8 -7 -6 -6 -6 -5 -4 -4 -4 -4 -4 -3 -3 -2 -1 ---------- Run | Yrd Mat Min Sub Mat Fac Fac Ext Cet Fac Fac Was Fac Upp Upp Res Qua Res Acc Machines Disabled 15 | . . . . . . . 3 . . 4 . . 2 . . 3 3 . Max in Single Turn 4 | . . . . . . . 1 . . 4 . . 1 . . 1 1 . Garrison Access 1 | . . . . 1 . . . . . . . . . . . . . . Machines Repaired . | . . . . . . . . . . . . . . . . . . . Machines Dismantled . | . . . . . . . . . . . . . . . . . . . Machines Sabotaged . | . . . . . . . . . . . . . . . . . . . Overloaded Fab Kills . | . . . . . . . . . . . . . . . . . . . Hacking | -11 -10 -10 -10 -8 -7 -6 -6 -6 -5 -4 -4 -4 -4 -4 -3 -3 -2 -1 --------- Run | Yrd Mat Min Sub Mat Fac Fac Ext Cet Fac Fac Was Fac Upp Upp Res Qua Res Acc Machines Accessed 34 | . 3 . . 3 3 . 8 3 1 2 . . . . 3 2 5 1 Terminals 31 | . 3 . . 2 3 . 8 3 1 . . . . . 3 2 5 1 Fabricators . | . . . . . . . . . . . . . . . . . . . Repair Stations 1 | . . . . . . . . . . 1 . . . . . . . . Recycling Units . | . . . . . . . . . . . . . . . . . . . Scanalyzers 1 | . . . . . . . . . . 1 . . . . . . . . Garrison Access 1 | . . . . 1 . . . . . . . . . . . . . . Total Hacks 79 | . 7 . . 9 4 . 16 7 3 7 . . . . 7 3 14 2 Successful 27 | . 3 . . 3 . . 5 2 1 4 . . . . 2 . 7 . Failed 52 | . 4 . . 6 4 . 11 5 2 3 . . . . 5 3 7 2 Catastrophic 18 | . 1 . . . 2 . 2 4 1 1 . . . . 3 1 2 1 Database Lockouts . | . . . . . . . . . . . . . . . . . . . Manual 24 | . . . . 7 . . . 1 . . . . . . 2 . 12 2 Terminals 71 | . 7 . . 8 4 . 16 7 3 . . . . . 7 3 14 2 Fabricators . | . . . . . . . . . . . . . . . . . . . Repair Stations 5 | . . . . . . . . . . 5 . . . . . . . . Recycling Units . | . . . . . . . . . . . . . . . . . . . Scanalyzers 2 | . . . . . . . . . . 2 . . . . . . . . Garrison Access 1 | . . . . 1 . . . . . . . . . . . . . . Terminal Hacks 16 | . 3 . . 1 . . 5 2 1 . . . . . 2 . 2 . Record 4 | . 1 . . . . . . 2 . . . . . . 1 . . . Robot Analysis 1 | . 1 . . . . . . . . . . . . . . . . . Prototype ID Bank 1 | . 1 . . . . . . . . . . . . . . . . . Open Door 5 | . . . . . . . 5 . . . . . . . . . . . Branch Access Points 2 | . . . . 1 . . . . . . . . . . 1 . . . Fabricator Index 1 | . . . . . . . . . 1 . . . . . . . . . Locate Traps 1 | . . . . . . . . . . . . . . . . . 1 . Zone Layout 1 | . . . . . . . . . . . . . . . . . 1 . Fabricator Hacks . | . . . . . . . . . . . . . . . . . . . Repair Station Hacks 3 | . . . . . . . . . . 3 . . . . . . . . Scan Component 2 | . . . . . . . . . . 2 . . . . . . . . Repair 1 | . . . . . . . . . . 1 . . . . . . . . Recycling Unit Hacks . | . . . . . . . . . . . . . . . . . . . Scanalyzer 1 | . . . . . . . . . . 1 . . . . . . . . Insert Component 1 | . . . . . . . . . . 1 . . . . . . . . Garrison Access Hacks 1 | . . . . 1 . . . . . . . . . . . . . . Seal Access 1 | . . . . 1 . . . . . . . . . . . . . . Unauthorized Hacks 6 | . . . . 1 . . . . . . . . . . . . 5 . Terminals 6 | . . . . 1 . . . . . . . . . . . . 5 . Botnet 3 | . . . . 1 . . . . . . . . . . . . 2 . Skim 3 | . . . . . . . . . . . . . . . . . 3 . Fabricators . | . . . . . . . . . . . . . . . . . . . Repair Stations . | . . . . . . . . . . . . . . . . . . . Recycling Units . | . . . . . . . . . . . . . . . . . . . Scanalyzers . | . . . . . . . . . . . . . . . . . . . Garrison Access . | . . . . . . . . . . . . . . . . . . . Data Cores Recovered . | . . . . . . . . . . . . . . . . . . . Used . | . . . . . . . . . . . . . . . . . . . Hacking Detections 30 | . 2 . . 2 3 . 6 3 1 2 . . . . 3 2 5 1 Full Trace Events 4 | . . . . . . . . . . . . . . . 1 1 1 1 Feedback Events 3 | . . . . . . . . . . . . . . . 1 . 1 1 Corruption 3 | . . . . . . . . . . . . . . . 1 . 1 1 Feedback Blocked . | . . . . . . . . . . . . . . . . . . . Robot Schematics Acquired . | . . . . . . . . . . . . . . . . . . . Robots Built . | . . . . . . . . . . . . . . . . . . . Authchips . | . . . . . . . . . . . . . . . . . . . Time . | . . . . . . . . . . . . . . . . . . . Total Robot Build Rating . | . . . . . . . . . . . . . . . . . . . Part Schematics Acquired . | . . . . . . . . . . . . . . . . . . . Parts Built . | . . . . . . . . . . . . . . . . . . . Authchips . | . . . . . . . . . . . . . . . . . . . Time . | . . . . . . . . . . . . . . . . . . . Total Part Build Rating . | . . . . . . . . . . . . . . . . . . . Parts Repaired 1 | . . . . . . . . . . 1 . . . . . . . . Time 108 | . . . . . . . . . . 108 . . . . . . . . Parts Recycled . | . . . . . . . . . . . . . . . . . . . Recycled Matter . | . . . . . . . . . . . . . . . . . . . Retrieved Matter . | . . . . . . . . . . . . . . . . . . . Retrieved Components . | . . . . . . . . . . . . . . . . . . . Parts Scanalyzed 1 | . . . . . . . . . . 1 . . . . . . . . Part Schematics Acquired . | . . . . . . . . . . . . . . . . . . . Parts Damaged . | . . . . . . . . . . . . . . . . . . . Bothacking | -11 -10 -10 -10 -8 -7 -6 -6 -6 -5 -4 -4 -4 -4 -4 -3 -3 -2 -1 ------------ Run | Yrd Mat Min Sub Mat Fac Fac Ext Cet Fac Fac Was Fac Upp Upp Res Qua Res Acc Used RIF Installer . | . . . . . . . . . . . . . . . . . . . Robots Hacked . | . . . . . . . . . . . . . . . . . . . Non-combat . | . . . . . . . . . . . . . . . . . . . Combat . | . . . . . . . . . . . . . . . . . . . Robot Hacks Applied . | . . . . . . . . . . . . . . . . . . . Relay Couplers Released . | . . . . . . . . . . . . . . . . . . . Fabnet Peak Effective % . | . . . . . . . . . . . . . . . . . . . Robots Rewired 22 | . . . . . . . 22 . . . . . . . . . . . Allies Hacked . | . . . . . . . . . . . . . . . . . . . Hacks Repelled . | . . . . . . . . . . . . . . . . . . . Allies | -11 -10 -10 -10 -8 -7 -6 -6 -6 -5 -4 -4 -4 -4 -4 -3 -3 -2 -1 -------- Run | Yrd Mat Min Sub Mat Fac Fac Ext Cet Fac Fac Was Fac Upp Upp Res Qua Res Acc Total Allies 35 | . . . . . . . 30 5 . . . . . . . . . . Largest Group 21 | . . . . . . . 21 9 7 5 2 2 2 . . . . . Highest-Rated Group 706 | . . . . . . . 619 706 663 480 192 192 192 . . . . . Highest-Rated Ally 159 | . . . . . . . 159 159 144 96 96 96 96 . . . . . Total Orders . | . . . . . . . . . . . . . . . . . . . Ally Attacks 307 | . . . . . . . 186 62 8 4 10 . 37 . . . . . Total Damage 7713 | . . . . . . . 3329 1681 430 181 505 . 1587 . . . . . Kills 45 | . . . . . . . 28 8 3 1 1 . 4 . . . . . Allies Corrupted . | . . . . . . . . . . . . . . . . . . . Allies Melted . | . . . . . . . . . . . . . . . . . . . Intel | -11 -10 -10 -10 -8 -7 -6 -6 -6 -5 -4 -4 -4 -4 -4 -3 -3 -2 -1 ------- Run | Yrd Mat Min Sub Mat Fac Fac Ext Cet Fac Fac Was Fac Upp Upp Res Qua Res Acc Active Infowar (turns) 9555 | . . . 228 691 299 582 2007 440 209 299 230 23 944 158 775 1043 1627 . Sensors 767 | . . . . . . 527 240 . . . . . . . . . . . IFF 2572 | . . . . . . . . . 207 299 230 23 944 158 242 . 469 . Terrain 3137 | . . . . . . 97 . . . . . . 424 158 775 853 830 . Structural 329 | . . . 228 101 . . . . . . . . . . . . . . Traps 389 | . . . . . . . 389 . . . . . . . . . . . Machine Analysis 5806 | . . . . 590 299 582 2007 440 209 299 230 23 944 158 25 . . . Jamming 3508 | . . . . . . . . . . . . . . 63 775 1043 1627 . Robot Analysis Total 1 | . 1 . . . . . . . . . . . . . . . . . Derelict Logs Recovered 3 | . . 1 1 . . . . . . . . . 1 . . . . . Drone Launches . | . . . . . . . . . . . . . . . . . . . Drone Recoveries . | . . . . . . . . . . . . . . . . . . . Exploration | -11 -10 -10 -10 -8 -7 -6 -6 -6 -5 -4 -4 -4 -4 -4 -3 -3 -2 -1 ------------- Run | Yrd Mat Min Sub Mat Fac Fac Ext Cet Fac Fac Was Fac Upp Upp Res Qua Res Acc Turns Passed 10997 | 9 724 223 395 808 299 582 2007 440 209 299 230 23 944 158 775 1043 1708 121 Spaces Moved 6016 | 7 454 146 265 463 199 335 1084 201 113 108 102 15 526 93 454 452 777 222 Core 385 | . 1 . . . . . . . . . . . . . . . 162 222 Treads 2648 | . 187 3 . . . . . 13 113 108 102 15 526 93 454 452 582 . Legs 2950 | 7 266 143 265 463 199 335 1084 188 . . . . . . . . . . Wheels 33 | . . . . . . . . . . . . . . . . . 33 . Hover . | . . . . . . . . . . . . . . . . . . . Flight . | . . . . . . . . . . . . . . . . . . . Fastest Speed 50 | 120 120 120 120 120 120 120 120 120 160 160 160 160 160 160 160 160 50 50 Average Speed 136 | 120 136 121 120 120 120 121 120 122 160 160 160 160 160 160 160 164 153 50 Slowest Speed 250 | 120 250 190 120 190 120 122 122 160 160 160 160 160 160 160 160 173 241 50 Overloaded Moves . | . . . . . . . . . . . . . . . . . . . Propulsion Burnouts . | . . . . . . . . . . . . . . . . . . . Robots Hopped . | . . . . . . . . . . . . . . . . . . . Potential Cave-ins 2 | . . . . . . . . . . . . . . . . 2 . . Cave-ins Triggered . | . . . . . . . . . . . . . . . . . . . Exploration Rate (%) 35 | 2 67 42 21 42 6 9 96 71 5 4 76 . 76 10 20 53 33 10 Regions Visited 18 Branch Regions 7 Pre-discovered Areas 3 | . . . 2 . . . . . . . . . 1 . . . . . Known Exits Taken 1 | . . . . . . . . . . . . . . . 1 . . . Unknown Exits Taken 15 | 1 1 1 1 1 1 1 1 1 1 . . 1 1 1 . 1 1 . Scrap Searched 4 | . . . . . . . . . . . . . 2 2 . . . . Spaces Dug 83 | . . . . 6 3 13 10 . . . . . 5 . . 27 19 . Terrain Destroyed 422 | . . . 36 6 3 13 30 5 3 37 94 . 19 . 5 58 113 . Melee 22 | . . . . 6 3 13 . . . . . . . . . . . . Projectile 96 | . . . . . . . 12 5 3 1 3 . 3 . 5 36 28 . AOE 304 | . . . 36 . . . 18 . . 36 91 . 16 . . 22 85 . Terrain Rammed . | . . . . . . . . . . . . . . . . . . . Walls Destroyed . | . . . . . . . . . . . . . . . . . . . Machines Disabled . | . . . . . . . . . . . . . . . . . . . Actions | -11 -10 -10 -10 -8 -7 -6 -6 -6 -5 -4 -4 -4 -4 -4 -3 -3 -2 -1 --------- Run | Yrd Mat Min Sub Mat Fac Fac Ext Cet Fac Fac Was Fac Upp Upp Res Qua Res Acc Total 7987 | 7 518 173 303 610 233 444 1673 376 129 232 128 14 590 102 488 641 1094 232 Wait 859 | . 26 11 7 20 17 56 225 138 4 109 . . 21 3 13 73 136 . Move 5999 | 6 453 145 264 462 198 334 1083 200 112 108 101 14 525 92 453 451 776 222 Hop . | . . . . . . . . . . . . . . . . . . . Pick Up 89 | . 7 2 3 15 2 4 12 4 2 3 1 . 2 1 3 14 13 1 Fast Attach 49 | . 2 2 1 12 1 2 6 3 . 1 1 . 2 3 3 5 5 . Attach 43 | . 3 . 2 2 1 5 2 2 2 3 . . 1 . 2 3 14 1 Detach 2 | . . . . 1 . . . . . . 1 . . . . . . . Swap 84 | 1 1 . 1 7 . 8 29 3 1 4 2 . 6 . 2 7 12 . Drop 112 | . 4 3 1 24 1 4 34 14 1 2 3 . 3 3 4 11 . . Fire 415 | . 22 10 24 . . 2 71 12 6 1 19 . 30 . 6 74 138 . Melee 135 | . . . . 67 13 29 26 . . . . . . . . . . . Ram 8 | . . . . . . . . . . . . . . . . . . 8 Kick 1 | . . . . . . . 1 . . . . . . . . . . . Crush 7 | . . . . . . . . . 1 1 . . . . 2 3 . . Escape Stasis 5 | . . . . . . . 5 . . . . . . . . . . . Rewire 179 | . . . . . . . 179 . . . . . . . . . . . Trap . | . . . . . . . . . . . . . . . . . . . Miscellaneous . | . . . . . . . . . . . . . . . . . . . Route ------- -11/Scrapyard -10/Materials (discovered 2 exits: [*Mat] / [*Min]) -10/Mines -10/Subcaves -8/Materials -7/Factory -6/Factory -6/Extension (discovered 2 exits: *Fac / *Cet) -6/Cetus (discovered 2 exits: *Fac / [*Arc]) -5/Factory -4/Factory -4/Waste -4/Factory -4/Upper Caves -4/Upper Caves -3/Research (discovered 3 exits: *Res / *Qua x2) -3/Quarantine -2/Research -1/Access History --------- Turn | Location | Event 3 | -11/Scrapyard | Discovered new exit (range 3) 10 | -11/Scrapyard | Entered Materials 90 | -10/Materials | Discovered new exit (range 4) 190 | -10/Materials | Discovered new exit (range 14) 314 | -10/Materials | Build established: Mutant 734 | -10/Materials | Entered Mines 780 | -10/Mines | Learned Materials stockpile data 791 | -10/Mines | Received a Rocket Launcher from a helpful Derelict 942 | -10/Mines | Discovered new exit (range 13) 957 | -10/Mines | Entered Subcaves 958 | -10/Subcaves | Approached by a straggling Scientist 1113 | -10/Subcaves | Core integrity fell below 50% 1136 | -10/Subcaves | Learned location of Zion (-7) 1136 | -10/Subcaves | Met a Zionite searching for "candidates" 1209 | -10/Subcaves | Core integrity fell below 20% 1280 | -10/Subcaves | Discovered new exit (range 14) 1352 | -10/Subcaves | Entered Materials 1352 | -8/Materials | Evolved 4 slots: Propulsion x2, Utility x2 1522 | -8/Materials | Lost 3 parts (2n1u) 1840 | -8/Materials | Build established: Scavenger-Mutant 2153 | -8/Materials | Discovered new exit (range 7) 2160 | -8/Materials | Entered Factory 2160 | -7/Factory | Evolved 2 slots: Utility x2 2363 | -7/Factory | Discovered new exit (range 12) 2459 | -7/Factory | Entered another Factory area 2459 | -6/Factory | Evolved 2 slots: Power x1, Propulsion x1 2948 | -6/Factory | Lost 4 parts (1p2n1u) 3000 | -6/Factory | Discovered new exit (range 13) 3041 | -6/Factory | Entered Extension 3299 | -6/Extension | Rescued a captive Derelict 3370 | -6/Extension | Rescued a captive Derelict 3371 | -6/Extension | Rescued a captive Derelict 3483 | -6/Extension | Build established: Commander-Mutant 3628 | -6/Extension | Lost 4 allies 4091 | -6/Extension | Disrupted transfer network 4170 | -6/Extension | Spotted B-75 Beast 4189 | -6/Extension | Spotted B-75 Beast 4211 | -6/Extension | Allies destroyed B-75 Beast 4227 | -6/Extension | Allies destroyed B-75 Beast 4263 | -6/Extension | Lost 17 allies 4432 | -6/Extension | Lost 4 allies 4481 | -6/Extension | Discovered new exit (range 16) 4481 | -6/Extension | Discovered new exit (range 16) 4550 | -6/Extension | Build established: Scavenger-Mutant 4687 | -6/Extension | Rescued a captive Derelict 4688 | -6/Extension | Rescued a captive Derelict 4820 | -6/Extension | Rescued A7 4866 | -6/Extension | Rescued a captive Derelict 4869 | -6/Extension | Rescued a captive Derelict 5048 | -6/Extension | Entered Cetus 5048 | -6/Cetus | Accompanied by 5 allies (A7) 5053 | -6/Cetus | Acquired a Cetus Manufacturing Module code from A7 5063 | -6/Cetus | Spotted Cetus Guard 5063 | -6/Cetus | Spotted Cetus Guard 5069 | -6/Cetus | Spotted Cetus Guard 5071 | -6/Cetus | Allies destroyed Cetus Guard 5071 | -6/Cetus | Spotted Cetus Guard 5073 | -6/Cetus | Destroyed Cetus Guard 5088 | -6/Cetus | Destroyed Cetus Guard 5093 | -6/Cetus | Allies destroyed Cetus Guard 5207 | -6/Cetus | Started Cetus Manufacturing Module 5232 | -6/Cetus | Manufactured an Enhanced Grunt 5257 | -6/Cetus | Manufactured an Enhanced Grunt 5282 | -6/Cetus | Manufactured an Enhanced Grunt 5307 | -6/Cetus | Manufactured an Enhanced Grunt 5332 | -6/Cetus | Manufactured an Enhanced Grunt 5372 | -6/Cetus | Discovered new exit (range 16) 5417 | -6/Cetus | Spotted Cetus Guard 5417 | -6/Cetus | Spotted Cetus Guard 5421 | -6/Cetus | Spotted Cetus Guard 5423 | -6/Cetus | Allies destroyed Cetus Guard 5429 | -6/Cetus | Allies destroyed Cetus Guard 5432 | -6/Cetus | Spotted Cetus Guard 5437 | -6/Cetus | Allies destroyed Cetus Guard 5447 | -6/Cetus | Allies destroyed Cetus Guard 5448 | -6/Cetus | Discovered new exit (range 15) 5464 | -6/Cetus | Met Revision 17 5467 | -6/Cetus | System corruption reached 10% 5488 | -6/Cetus | Entered Factory 5488 | -5/Factory | Accompanied by 7 allies (A7) 5488 | -5/Factory | Evolved 2 slots: Propulsion x1, Utility x1 5629 | -5/Factory | Discovered new exit (range 12) 5697 | -5/Factory | Entered another Factory area 5697 | -4/Factory | Accompanied by 5 allies 5697 | -4/Factory | Evolved 2 slots: Utility x2 5874 | -4/Factory | Repaired Centrium Medium Armor Plating 5996 | -4/Factory | Sucked down chute 5996 | -4/Factory | Entered Waste 6011 | -4/Waste | EMP discharged 6012 | -4/Waste | Spotted C-40 Crusher 6018 | -4/Waste | Spotted C-40 Crusher 6022 | -4/Waste | Destroyed C-40 Crusher 6025 | -4/Waste | Destroyed C-40 Crusher 6033 | -4/Waste | Spotted C-40 Crusher 6048 | -4/Waste | Destroyed C-40 Crusher 6048 | -4/Waste | Spotted C-40 Crusher 6059 | -4/Waste | Destroyed C-40 Crusher 6060 | -4/Waste | Spotted C-40 Crusher 6060 | -4/Waste | Spotted C-40 Crusher 6072 | -4/Waste | Allies destroyed C-40 Crusher 6081 | -4/Waste | Destroyed C-40 Crusher 6106 | -4/Waste | 3 allies followed down the chute 6111 | -4/Waste | EMP discharged 6111 | -4/Waste | System corruption reached 10% 6206 | -4/Waste | Discovered new exit (range 13) 6211 | -4/Waste | EMP discharged 6226 | -4/Waste | Entered Factory 6226 | -4/Factory | Accompanied by 2 allies 6226 | -4/Factory | Discovered new exit (range 10) 6249 | -4/Factory | Entered Upper Caves 6249 | -4/Upper Caves | Accompanied by 2 allies 6321 | -4/Upper Caves | Attracted the attention of an 0b10 checkpoint 6383 | -4/Upper Caves | Spotted B-86 Titan 6412 | -4/Upper Caves | Allies destroyed B-86 Titan 6511 | -4/Upper Caves | Attracted the attention of an 0b10 base 7061 | -4/Upper Caves | Build established: Scavenger-Skirmisher 7076 | -4/Upper Caves | Encountered a Warlord checkpoint 7097 | -4/Upper Caves | Learned location of Armory (-4) 7169 | -4/Upper Caves | Discovered new exit (range 11) 7193 | -4/Upper Caves | Entered another Upper Caves area 7244 | -4/Upper Caves | Discovered new exit (range 15) 7276 | -4/Upper Caves | Found DCF Scrap (14 items) 7351 | -4/Upper Caves | Entered Research 7351 | -3/Research | Evolved 2 slots: Power x1, Weapon x1 7390 | -3/Research | Found Prototype Device 7530 | -3/Research | Identified exit to Quarantine 7551 | -3/Research | Revision forces began assault on 0b10 7554 | -3/Research | Discovered new exit (range 7) 7593 | -3/Research | Identified Exp. Focal Shield 7594 | -3/Research | Met up with Revision 17++ 7661 | -3/Research | Build established: Scavenger-Tank 8051 | -3/Research | Research terminal network offline 8126 | -3/Research | Entered Quarantine 8197 | -3/Quarantine | Spotted Alpha 7 8260 | -3/Quarantine | Destroyed Alpha 7 8796 | -3/Quarantine | Found Gamma Bomb Array 9049 | -3/Quarantine | Discovered new exit (range 15) 9169 | -3/Quarantine | Entered Research 9169 | -2/Research | Evolved 2 slots: Utility x2 9442 | -2/Research | Spotted B-90 Cyclops 9802 | -2/Research | System corruption reached 10% 10385 | -2/Research | Build established: Tank 10406 | -2/Research | Spotted B-90 Cyclops 10479 | -2/Research | Destroyed B-90 Cyclops 10506 | -2/Research | System corruption reached 30% 10510 | -2/Research | Lost 10 parts (3p1n3u3w) 10571 | -2/Research | Destroyed 8 combat bots 10571 | -2/Research | Lost 6 parts (1p1n4u) 10790 | -2/Research | Cargo convoy interrupted 10796 | -2/Research | Released all parts (10) 10808 | -2/Research | Spotted B-90 Cyclops 10823 | -2/Research | Core integrity fell below 50% 10865 | -2/Research | Core integrity fell below 20% 10870 | -2/Research | Discovered new exit (range 12) 10877 | -2/Research | Entered Access 10877 | -1/Access | Evolved 2 slots: Utility x2 10973 | -1/Access | Core integrity fell below 50% 10985 | -1/Access | Core integrity fell below 20% 10998 | -1/Access | Destroyed by S-43 Plague with Heavy Machine Gun Last Messages --------------- 10962_ Slammed into A-15 Conveyor. 10972_ Wave Collapse Detector explodes. 10973_ P-80 Master resets S-43 Plague, system corruption cleaned. 10973_ O-32 Director: "IFF HANDSHAKE FAILED. SECURING TERMINAL." 10977_ Penetrated by Slug. 10979_ Slug penetrates Wall. 10981_ Penetrated by Slug. 10981_ Slug penetrates K-01 Serf. 10981_ K-01 Serf destroyed. 10981_ Penetrated by Slug. 10982_ K-01 Serf collects debris. 10982_ Penetrated by Slug. 10984_ K-01 Serf collects debris. 10985_ Penetrated by Slug. 10986_ K-01 Serf collects debris. 10988_ ALERT: Hostiles spotted, dispatching reinforcements to Terminal A009. 10988_ K-01 Serf collects debris. Map ----- +----------------------------------------------------+ | ?????????????????????????????????????????????????? | | ?????????????????????????????????????????????????? | | ?????????????????????????????????????????????????? | | ?????????????????????????????????????????????????? | | ?????????????????????????????????????????????????? | | ?????????????????????????????????????????????????? | | ?????????????????????????????????????????????????? | | ?????????????????????????????????????????????????? | | ?????????????????????????????????????????????????? | | ?????????????????????????????????????????????????? | | ?????????????????????????????????????????????????? | | ?????????????????????????????????????????????????? | | ?????????????????????????????????????????????????? | | ?????????????????????????????????? ??????????????? | | ######???????????????????????##### ????????????? | | ??????????????????????? ????????????? | | ?????????????????????? ???????????? | | ?????????????????????? ???????????? | | ?????????????????????? Ak ??????????? | | ????????????????????? ??????????? | | ?????????????????????g g ??????????? | | ###+#################k ????????????? | | u #??????????????? | | #??????????????? | | #??????????????? | | u @ #??????????????? | | #??????????????? | | ss #??????????????? | | #??????????????? | | #############################??????????????? | | # * ???????????????????????????? | | # ???????????????????????????? | | + ???????????????????????????? | | # ???????????????????????????? | | # ???????????????????????????? | | #? ????????????????????????????? | | #? ????????????????????????????? | | #??###########?????????????????????????????? | | #??????????????????????????????????????????? | | #??????????????????????????????????????????? | | #??????????????????????????????????????????? | | #??????????????????????????????????????????? | | ###????????????????????????????????????????? | | #???????????????????????????????????? | | #???????????????????????????????????? | | =% #???????????????????????????????????? | | +???????????????????????????????????? | | #???????????????????????????????????? | | #???????????????????????????????????? | | ????????????????????????????????????? | +----------------------------------------------------+ Best States ------------- Heat Dissipation 100 Energy Generation 59 Energy Capacity 815 Matter Stores 300 Matter Capacity 300 Sight Range 16 Robot Scan Range 16 Terrain Scan Range 20 Terrain Scan Density 210 Jamming Range 14 Base Temperature (-) 200 EM Shielding 2 Armor Coverage 1350 Resistance: KI 30 Resistance: TH 25 Propulsion Shielding 66 Weapon Shielding 33 Evasion (%) 55 Armor Integrity Analysis 30 Recoil Reduction 6 Particle Charging 20 Offensive Hacking 12 Defensive Hacking 14 Item Schematics ----------------- None Robot Schematics ------------------ None Fabricated ------------ Nothing Repaired ---------- Centrium Medium Armor Plating | 38% | -4/Factory Alien Tech Used ----------------- None Achievements -------------- Revolutionary Research Challenges ------------ None Game ------ Seed LongswordParticleMeganuke Manual? 0 Play Time 01:59:36 Cumulative 214.8 hours Start 2025.05.28 @ 19:23:08 End 2025.05.29 @ 22:32:21 Sessions 5 Manual Loads 0 Difficulty Rogue Special Mode None Game No. 121 Rogue 121 Adventurer 0 Explorer 0 Win Type - Total 9 Types 9/0/0/0/0/0/0/0/0/0 Lore% 64 Gallery% 65 Achievement% 60 Wizard Run 0 Options --------- Layout 1 ASCII 0 Keyboard 0 Movement Numpad Keybinds 0 Fullscreen 1 Font 24/Smallcaps Map View 50x35 Zoom Use 0% Tactical HUD 1 Map Filters NONE Filters NONE Steam 1 RUN: aa675131-8ac4-4953-84dd-9f6060371cff